fUSD/lending_fUSD_20260614
["ID","MTS","AMOUNT","RATE_DAILY","PERIOD"]
[425002992,1781406214000,-500.0,0.00027397,2]
[425002991,1781406214000,-500.0,0.00027397,2]
[425002990,1781406214000,-500.0,0.00027397,2]
[425002993,1781406214000,-500.0,0.00027397,2]
[425002987,1781406214000,-151.0,0.00027397,2]
[425002988,1781406214000,-151.0,0.00027397,2]
[425002985,1781406214000,-151.0,0.00027397,2]
[425002989,1781406214000,-189.63892853,0.00027397,2]
[425002981,1781406214000,-500.0,0.00027397,2]
[425002986,1781406214000,-151.0,0.00027397,2]
[425002979,1781406214000,-500.0,0.00027397,2]
[425002976,1781406214000,-500.0,0.00027397,2]
[425002977,1781406214000,-500.0,0.00027397,2]
[425002978,1781406214000,-500.0,0.00027397,2]
[425002972,1781406214000,-906.45,0.00027397,2]
[425002980,1781406214000,-881.27,0.00027397,2]
[425002983,1781406214000,-500.0,0.00027397,2]
[425002984,1781406214000,-568.86,0.00027397,2]
[425002982,1781406214000,-300.0,0.00027397,2]
[425003010,1781406215000,-500.0,0.00027397,2]
[425003015,1781406215000,-1963.7,0.00027397,2]
[425003013,1781406215000,-565.18,0.00027397,2]
[425003016,1781406215000,-500.0,0.00027397,2]
[425003017,1781406215000,-165.78480309,0.00027397,2]
[425003014,1781406215000,-500.0,0.00027397,2]
[425003011,1781406215000,-500.0,0.00027397,2]
[425003009,1781406215000,-500.0,0.00027397,2]
[425003012,1781406215000,-621.49,0.00027397,2]
[425003008,1781406215000,-1490.45,0.00027397,2]
[425002996,1781406215000,-1202.63,0.00027397,2]
[425003005,1781406215000,-959.14,0.00027397,2]
[425003006,1781406215000,-500.0,0.00027397,2]
[425003018,1781406215000,-1685.3,0.00027397,2]
[425003003,1781406215000,-665.51,0.00027397,2]
[425003002,1781406215000,-500.0,0.00027397,2]
[425003001,1781406215000,-500.0,0.00027397,2]
[425003000,1781406215000,-1113.96,0.00027397,2]
[425002998,1781406215000,-600.75,0.00027397,2]
[425002999,1781406215000,-500.0,0.00027397,2]
[425002997,1781406215000,-500.0,0.00027397,2]
[425003007,1781406215000,-500.0,0.00027397,2]
[425003019,1781406215000,-543.60001868,0.00027397,2]
[425003004,1781406215000,-527.34,0.00027397,2]
[425003021,1781406215000,-500.0,0.00027397,2]
[425003042,1781406215000,-500.0,0.00027397,2]
[425003043,1781406215000,-500.0,0.00027397,2]
[425003040,1781406215000,-500.0,0.00027397,2]
[425003041,1781406215000,-2149.24,0.00027397,2]
[425003039,1781406215000,-500.0,0.00027397,2]
[425003037,1781406215000,-500.0,0.00027397,2]
[425003038,1781406215000,-1273.59,0.00027397,2]
[425003036,1781406215000,-500.0,0.00027397,2]
[425003035,1781406215000,-1317.27,0.00027397,2]
[425003032,1781406215000,-500.0,0.00027397,2]
[425003034,1781406215000,-648.05,0.00027397,2]
[425003020,1781406215000,-500.0,0.00027397,2]
[425003029,1781406215000,-500.0,0.00027397,2]
[425003030,1781406215000,-988.46,0.00027397,2]
[425003028,1781406215000,-500.0,0.00027397,2]
[425003031,1781406215000,-2718.8,0.00027397,2]
[425003025,1781406215000,-500.0,0.00027397,2]
[425003027,1781406215000,-500.0,0.00027397,2]
[425003026,1781406215000,-500.0,0.00027397,2]
[425003024,1781406215000,-500.03,0.00027397,2]
[425003023,1781406215000,-564.9,0.00027397,2]
[425003022,1781406215000,-500.0,0.00027397,2]
[425003033,1781406215000,-500.0,0.00027397,2]
[425003059,1781406216000,-500.0,0.00027397,2]
[425003057,1781406216000,-500.0,0.00027397,2]
[425003060,1781406216000,-500.0,0.00027397,2]
[425003061,1781406216000,-593.17,0.00027397,2]
[425003064,1781406216000,-2586.25,0.00027397,2]
[425003062,1781406216000,-1102.94,0.00027397,2]
[425003063,1781406216000,-500.0,0.00027397,2]
[425003056,1781406216000,-500.0,0.00027397,2]
[425003058,1781406216000,-500.0,0.00027397,2]
[425003053,1781406216000,-907.19,0.00027397,2]
[425003048,1781406216000,-1107.29,0.00027397,2]
[425003054,1781406216000,-500.0,0.00027397,2]
[425003052,1781406216000,-293.329995,0.00027397,2]
[425003049,1781406216000,-500.0,0.00027397,2]
[425003051,1781406216000,-500.0,0.00027397,2]
[425003050,1781406216000,-151.0,0.00027397,2]
[425003047,1781406216000,-162.41032408,0.00027397,2]
[425003045,1781406216000,-529.66,0.00027397,2]
[425003046,1781406216000,-2365.3,0.00027397,2]
[425003044,1781406216000,-519.66,0.00027397,2]
[425003066,1781406216000,-1759.18,0.00027397,2]
[425003055,1781406216000,-500.0,0.00027397,2]
[425003065,1781406216000,-500.0,0.00027397,2]
[425003071,1781406216000,-500.0,0.00027397,2]
[425003067,1781406216000,-1035.88,0.00027397,2]
[425003090,1781406216000,-500.0,0.00027397,2]
[425003089,1781406216000,-737.52,0.00027397,2]
[425003086,1781406216000,-500.0,0.00027397,2]
[425003069,1781406216000,-1255.59,0.00027397,2]
[425003088,1781406216000,-500.0,0.00027397,2]
[425003085,1781406216000,-500.0,0.00027397,2]
[425003084,1781406216000,-500.0,0.00027397,2]
[425003080,1781406216000,-500.0,0.00027397,2]
[425003082,1781406216000,-500.0,0.00027397,2]
[425003083,1781406216000,-500.0,0.00027397,2]
[425003079,1781406216000,-500.0,0.00027397,2]
[425003087,1781406216000,-500.0,0.00027397,2]
[425003075,1781406216000,-500.0,0.00027397,2]
[425003081,1781406216000,-500.0,0.00027397,2]
[425003070,1781406216000,-500.0,0.00027397,2]
[425003073,1781406216000,-2012.29,0.00027397,2]
[425003072,1781406216000,-500.0,0.00027397,2]
[425003068,1781406216000,-500.0,0.00027397,2]
[425003078,1781406216000,-500.0,0.00027397,2]
[425003074,1781406216000,-1297.9,0.00027397,2]
[425003076,1781406216000,-500.0,0.00027397,2]
[425003077,1781406216000,-500.0,0.00027397,2]
[425003100,1781406217000,-500.0,0.00027397,2]
[425003105,1781406217000,-1039.58,0.00027397,2]
[425003104,1781406217000,-500.0,0.00027397,2]
[425003103,1781406217000,-500.0,0.00027397,2]
[425003102,1781406217000,-843.22,0.00027397,2]
[425003101,1781406217000,-500.0,0.00027397,2]
[425003098,1781406217000,-500.0,0.00027397,2]
[425003094,1781406217000,-500.0,0.00027397,2]
[425003097,1781406217000,-500.0,0.00027397,2]
[425003096,1781406217000,-500.0,0.00027397,2]
[425003095,1781406217000,-514.95,0.00027397,2]
[425003093,1781406217000,-500.0,0.00027397,2]
[425003092,1781406217000,-500.0,0.00027397,2]
[425003091,1781406217000,-500.0,0.00027397,2]
[425003106,1781406217000,-500.0,0.00027397,2]
[425003099,1781406217000,-500.0,0.00027397,2]
[425003107,1781406217000,-500.0,0.00027397,2]
[425003110,1781406217000,-653.06,0.00027397,2]
[425003108,1781406217000,-578.92,0.00027397,2]
[425003109,1781406217000,-500.0,0.00027397,2]
[425003124,1781406217000,-500.0,0.00027397,2]
[425003121,1781406217000,-585.33,0.00027397,2]
[425003123,1781406217000,-500.0,0.00027397,2]
[425003122,1781406217000,-965.53,0.00027397,2]
[425003120,1781406217000,-1394.8,0.00027397,2]
[425003119,1781406217000,-1832.0,0.00027397,2]
[425003125,1781406217000,-500.0,0.00027397,2]
[425003118,1781406217000,-918.78,0.00027397,2]
[425003116,1781406217000,-500.0,0.00027397,2]
[425003115,1781406217000,-500.0,0.00027397,2]
[425003114,1781406217000,-1352.33,0.00027397,2]
[425003113,1781406217000,-780.12,0.00027397,2]
[425003111,1781406217000,-500.0,0.00027397,2]
[425003112,1781406217000,-1229.39,0.00027397,2]
[425003117,1781406217000,-887.82,0.00027397,2]
[425003138,1781406218000,-500.0,0.00027397,2]
[425003139,1781406218000,-835.66,0.00027397,2]
[425003140,1781406218000,-1172.91,0.00027397,2]
[425003143,1781406218000,-500.0,0.00027397,2]
[425003144,1781406218000,-500.0,0.00027397,2]
[425003142,1781406218000,-500.0,0.00027397,2]
[425003134,1781406218000,-570.03,0.00027397,2]
[425003141,1781406218000,-500.0,0.00027397,2]
[425003137,1781406218000,-500.0,0.00027397,2]
[425003127,1781406218000,-500.0,0.00027397,2]
[425003135,1781406218000,-884.94,0.00027397,2]
[425003133,1781406218000,-500.0,0.00027397,2]
[425003131,1781406218000,-500.0,0.00027397,2]
[425003129,1781406218000,-1620.59,0.00027397,2]
[425003132,1781406218000,-500.0,0.00027397,2]
[425003130,1781406218000,-500.0,0.00027397,2]
[425003146,1781406218000,-500.0,0.00027397,2]
[425003128,1781406218000,-500.0,0.00027397,2]
[425003126,1781406218000,-1188.58,0.00027397,2]
[425003136,1781406218000,-500.0,0.00027397,2]
[425003149,1781406218000,-848.44,0.00027397,2]
[425003145,1781406218000,-500.0,0.00027397,2]
[425003147,1781406218000,-500.0,0.00027397,2]
[425003148,1781406218000,-500.0,0.00027397,2]
[425003169,1781406218000,-1046.79,0.00027397,2]
[425003168,1781406218000,-740.48,0.00027397,2]
[425003166,1781406218000,-1000.89,0.00027397,2]
[425003164,1781406218000,-500.0,0.00027397,2]
[425003167,1781406218000,-1778.39,0.00027397,2]
[425003163,1781406218000,-500.0,0.00027397,2]
[425003161,1781406218000,-3024.11,0.00027397,2]
[425003162,1781406218000,-783.3,0.00027397,2]
[425003160,1781406218000,-500.0,0.00027397,2]
[425003165,1781406218000,-591.47,0.00027397,2]
[425003159,1781406218000,-500.0,0.00027397,2]
[425003158,1781406218000,-500.0,0.00027397,2]
[425003152,1781406218000,-500.0,0.00027397,2]
[425003153,1781406218000,-712.51,0.00027397,2]
[425003151,1781406218000,-500.0,0.00027397,2]
[425003150,1781406218000,-504.67901139,0.00027397,2]
[425003155,1781406218000,-500.0,0.00027397,2]
[425003157,1781406218000,-1154.1,0.00027397,2]
[425003156,1781406218000,-568.27,0.00027397,2]
[425003154,1781406218000,-818.79,0.00027397,2]
[425003183,1781406219000,-500.0,0.00027397,2]
[425003190,1781406219000,-500.0,0.00027397,2]
[425003187,1781406219000,-500.0,0.00027397,2]
[425003188,1781406219000,-500.0,0.00027397,2]
[425003186,1781406219000,-500.0,0.00027397,2]
[425003185,1781406219000,-1401.21,0.00027397,2]
[425003184,1781406219000,-500.0,0.00027397,2]
[425003182,1781406219000,-500.0,0.00027397,2]
[425003179,1781406219000,-656.52,0.00027397,2]
[425003173,1781406219000,-606.23,0.00027397,2]
[425003181,1781406219000,-500.0,0.00027397,2]
[425003178,1781406219000,-544.64,0.00027397,2]
[425003175,1781406219000,-500.0,0.00027397,2]
[425003177,1781406219000,-500.0,0.00027397,2]
[425003176,1781406219000,-170.90884882,0.00027397,2]
[425003174,1781406219000,-1144.25,0.00027397,2]
[425003170,1781406219000,-500.0,0.00027397,2]
[425003172,1781406219000,-1404.45,0.00027397,2]
[425003171,1781406219000,-723.84,0.00027397,2]
[425003180,1781406219000,-236.59490419,0.00027397,2]
[425003189,1781406219000,-976.6,0.00027397,2]
[425003194,1781406219000,-672.15,0.00027397,2]
[425003191,1781406219000,-2184.53,0.00027397,2]
[425003213,1781406219000,-500.0,0.00027397,2]
[425003212,1781406219000,-500.0,0.00027397,2]
[425003210,1781406219000,-275.67430773,0.00027397,2]
[425003211,1781406219000,-500.0,0.00027397,2]
[425003209,1781406219000,-500.0,0.00027397,2]
[425003207,1781406219000,-2299.18,0.00027397,2]
[425003206,1781406219000,-500.0,0.00027397,2]
[425003208,1781406219000,-500.0,0.00027397,2]
[425003205,1781406219000,-500.0,0.00027397,2]
[425003204,1781406219000,-1538.51,0.00027397,2]
[425003192,1781406219000,-500.0,0.00027397,2]
[425003203,1781406219000,-500.0,0.00027397,2]
[425003202,1781406219000,-500.0,0.00027397,2]
[425003193,1781406219000,-500.0,0.00027397,2]
[425003197,1781406219000,-1132.36,0.00027397,2]
[425003196,1781406219000,-2413.17,0.00027397,2]
[425003195,1781406219000,-3316.79,0.00027397,2]
[425003199,1781406219000,-500.0,0.00027397,2]
[425003201,1781406219000,-2347.95,0.00027397,2]
[425003200,1781406219000,-877.94,0.00027397,2]
[425003198,1781406219000,-500.0,0.00027397,2]
[425003222,1781406220000,-500.0,0.00027397,2]
[425003231,1781406220000,-500.0,0.00027397,2]
[425003230,1781406220000,-625.02878717,0.00027397,2]
[425003229,1781406220000,-500.0,0.00027397,2]
[425003227,1781406220000,-1601.79,0.00027397,2]
[425003223,1781406220000,-529.16717411,0.00027397,2]
[425003224,1781406220000,-3129.16,0.00027397,2]
[425003226,1781406220000,-500.0,0.00027397,2]
[425003219,1781406220000,-936.19,0.00027397,2]
[425003220,1781406220000,-500.0,0.00027397,2]
[425003221,1781406220000,-1707.98,0.00027397,2]
[425003233,1781406220000,-500.0,0.00027397,2]
[425003218,1781406220000,-500.0,0.00027397,2]
[425003217,1781406220000,-500.0,0.00027397,2]
[425003214,1781406220000,-1739.39,0.00027397,2]
[425003215,1781406220000,-581.64726999,0.00027397,2]
[425003216,1781406220000,-1467.95,0.00027397,2]
[425003225,1781406220000,-1320.52,0.00027397,2]
[425003232,1781406220000,-861.22,0.00027397,2]
[425003228,1781406220000,-500.0,0.00027397,2]
[425003237,1781406220000,-969.04,0.00027397,2]
[425003253,1781406220000,-500.0,0.00027397,2]
[425003254,1781406220000,-500.0,0.00027397,2]
[425003252,1781406220000,-739.84,0.00027397,2]
[425003251,1781406220000,-636.05399272,0.00027397,2]
[425003249,1781406220000,-500.0,0.00027397,2]
[425003250,1781406220000,-1533.54,0.00027397,2]
[425003248,1781406220000,-982.97,0.00027397,2]
[425003247,1781406220000,-500.0,0.00027397,2]
[425003246,1781406220000,-1758.72,0.00027397,2]
[425003234,1781406220000,-500.0,0.00027397,2]
[425003243,1781406220000,-500.0,0.00027397,2]
[425003244,1781406220000,-1185.12,0.00027397,2]
[425003239,1781406220000,-500.0,0.00027397,2]
[425003242,1781406220000,-500.0,0.00027397,2]
[425003241,1781406220000,-500.0,0.00027397,2]
[425003240,1781406220000,-500.0,0.00027397,2]
[425003238,1781406220000,-730.86,0.00027397,2]
[425003236,1781406220000,-275.86650625,0.00027397,2]
[425003235,1781406220000,-500.0,0.00027397,2]
[425003245,1781406220000,-500.0,0.00027397,2]
[425003268,1781406221000,-600.17,0.00027397,2]
[425003267,1781406221000,-580.23,0.00027397,2]
[425003270,1781406221000,-500.0,0.00027397,2]
[425003273,1781406221000,-1969.45,0.00027397,2]
[425003272,1781406221000,-500.0,0.00027397,2]
[425003271,1781406221000,-1900.54,0.00027397,2]
[425003265,1781406221000,-500.0,0.00027397,2]
[425003269,1781406221000,-2082.47,0.00027397,2]
[425003264,1781406221000,-601.38,0.00027397,2]
[425003260,1781406221000,-500.0,0.00027397,2]
[425003263,1781406221000,-500.0,0.00027397,2]
[425003262,1781406221000,-500.0,0.00027397,2]
[425003261,1781406221000,-500.0,0.00027397,2]
[425003259,1781406221000,-500.0,0.00027397,2]
[425003258,1781406221000,-500.0,0.00027397,2]
[425003257,1781406221000,-500.0,0.00027397,2]
[425003256,1781406221000,-525.69047641,0.00027397,2]
[425003274,1781406221000,-500.0,0.00027397,2]
[425003266,1781406221000,-396.32694022,0.00027397,2]
[425003255,1781406221000,-1095.28,0.00027397,2]
[425003276,1781406221000,-500.0,0.00027397,2]
[425003275,1781406221000,-1362.08,0.00027397,2]
[425003295,1781406221000,-500.0,0.00027397,2]
[425003296,1781406221000,-500.0,0.00027397,2]
[425003294,1781406221000,-500.0,0.00027397,2]
[425003293,1781406221000,-500.0,0.00027397,2]
[425003290,1781406221000,-500.0,0.00027397,2]
[425003289,1781406221000,-1731.63,0.00027397,2]
[425003291,1781406221000,-1098.49,0.00027397,2]
[425003292,1781406221000,-2099.55,0.00027397,2]
[425003288,1781406221000,-500.0,0.00027397,2]
[425003277,1781406221000,-2555.73,0.00027397,2]
[425003287,1781406221000,-560.88,0.00027397,2]
[425003284,1781406221000,-1008.66,0.00027397,2]
[425003285,1781406221000,-1138.84,0.00027397,2]
[425003280,1781406221000,-500.0,0.00027397,2]
[425003282,1781406221000,-500.0,0.00027397,2]
[425003283,1781406221000,-500.0,0.00027397,2]
[425003281,1781406221000,-500.0,0.00027397,2]
[425003278,1781406221000,-500.0,0.00027397,2]
[425003279,1781406221000,-500.0,0.00027397,2]
[425003286,1781406221000,-1790.5,0.00027397,2]
[425003309,1781406222000,-553.13,0.00027397,2]
[425003311,1781406222000,-500.0,0.00027397,2]
[425003312,1781406222000,-500.0,0.00027397,2]
[425003314,1781406222000,-500.0,0.00027397,2]
[425003313,1781406222000,-500.0,0.00027397,2]
[425003315,1781406222000,-500.0,0.00027397,2]
[425003308,1781406222000,-571.87,0.00027397,2]
[425003310,1781406222000,-500.0,0.00027397,2]
[425003307,1781406222000,-829.95,0.00027397,2]
[425003303,1781406222000,-500.0,0.00027397,2]
[425003305,1781406222000,-500.0,0.00027397,2]
[425003302,1781406222000,-500.0,0.00027397,2]
[425003304,1781406222000,-500.0,0.00027397,2]
[425003301,1781406222000,-1064.06,0.00027397,2]
[425003300,1781406222000,-659.82,0.00027397,2]
[425003299,1781406222000,-500.0,0.00027397,2]
[425003298,1781406222000,-776.54,0.00027397,2]
[425003316,1781406222000,-500.0,0.00027397,2]
[425003306,1781406222000,-507.83,0.00027397,2]
[425003297,1781406222000,-1821.42,0.00027397,2]
[425003317,1781406222000,-2063.1,0.00027397,2]
[425003321,1781406222000,-500.0,0.00027397,2]
[425003318,1781406222000,-2126.22,0.00027397,2]
[425003338,1781406222000,-2057.77,0.00027397,2]
[425003335,1781406222000,-500.0,0.00027397,2]
[425003337,1781406222000,-1105.93,0.00027397,2]
[425003336,1781406222000,-695.08,0.00027397,2]
[425003332,1781406222000,-500.0,0.00027397,2]
[425003334,1781406222000,-500.0,0.00027397,2]
[425003331,1781406222000,-500.0,0.00027397,2]
[425003330,1781406222000,-200.0,0.00027397,2]
[425003333,1781406222000,-500.0,0.00027397,2]
[425003329,1781406222000,-560.78,0.00027397,2]
[425003327,1781406222000,-500.0,0.00027397,2]
[425003319,1781406222000,-500.0,0.00027397,2]
[425003322,1781406222000,-354.73707297,0.00027397,2]
[425003325,1781406222000,-500.0,0.00027397,2]
[425003320,1781406222000,-1827.76,0.00027397,2]
[425003323,1781406222000,-500.0,0.00027397,2]
[425003326,1781406222000,-500.0,0.00027397,2]
[425003328,1781406222000,-500.0,0.00027397,2]
[425003324,1781406222000,-500.0,0.00027397,2]
[425003350,1781406223000,-588.75,0.00027397,2]
[425003353,1781406223000,-989.92,0.00027397,2]
[425003355,1781406223000,-500.0,0.00027397,2]
[425003354,1781406223000,-500.0,0.00027397,2]
[425003356,1781406223000,-500.0,0.00027397,2]
[425003352,1781406223000,-500.0,0.00027397,2]
[425003349,1781406223000,-566.98,0.00027397,2]
[425003348,1781406223000,-500.0,0.00027397,2]
[425003351,1781406223000,-500.0,0.00027397,2]
[425003339,1781406223000,-510.1,0.00027397,2]
[425003344,1781406223000,-500.0,0.00027397,2]
[425003347,1781406223000,-500.0,0.00027397,2]
[425003346,1781406223000,-1157.68,0.00027397,2]
[425003345,1781406223000,-500.0,0.00027397,2]
[425003343,1781406223000,-500.0,0.00027397,2]
[425003340,1781406223000,-500.0,0.00027397,2]
[425003342,1781406223000,-500.0,0.00027397,2]
[425003341,1781406223000,-1676.5,0.00027397,2]
[425003357,1781406223000,-500.0,0.00027397,2]
[425003360,1781406223000,-500.0,0.00027397,2]
[425003373,1781406223000,-586.8,0.00027397,2]
[425003358,1781406223000,-500.0,0.00027397,2]
[425003359,1781406223000,-500.0,0.00027397,2]
[425003380,1781406223000,-500.0,0.00027397,2]
[425003379,1781406223000,-500.0,0.00027397,2]
[425003378,1781406223000,-500.0,0.00027397,2]
[425003376,1781406223000,-500.0,0.00027397,2]
[425003377,1781406223000,-500.0,0.00027397,2]
[425003375,1781406223000,-500.0,0.00027397,2]
[425003374,1781406223000,-539.68,0.00027397,2]
[425003372,1781406223000,-1408.07,0.00027397,2]
[425003371,1781406223000,-500.0,0.00027397,2]
[425003368,1781406223000,-500.0,0.00027397,2]
[425003361,1781406223000,-500.0,0.00027397,2]
[425003364,1781406223000,-875.58,0.00027397,2]
[425003362,1781406223000,-500.0,0.00027397,2]
[425003365,1781406223000,-500.0,0.00027397,2]
[425003363,1781406223000,-500.0,0.00027397,2]
[425003367,1781406223000,-500.0,0.00027397,2]
[425003366,1781406223000,-500.0,0.00027397,2]
[425003370,1781406223000,-1440.43,0.00027397,2]
[425003369,1781406223000,-500.0,0.00027397,2]
[425003399,1781406224000,-820.66,0.00027397,2]
[425003400,1781406224000,-555.32,0.00027397,2]
[425003397,1781406224000,-1380.56,0.00027397,2]
[425003398,1781406224000,-378.81951025,0.00027397,2]
[425003396,1781406224000,-500.0,0.00027397,2]
[425003392,1781406224000,-500.0,0.00027397,2]
[425003394,1781406224000,-620.36,0.00027397,2]
[425003395,1781406224000,-500.0,0.00027397,2]
[425003389,1781406224000,-500.0,0.00027397,2]
[425003387,1781406224000,-500.0,0.00027397,2]
[425003401,1781406224000,-500.0,0.00027397,2]
[425003391,1781406224000,-500.0,0.00027397,2]
[425003388,1781406224000,-2124.91,0.00027397,2]
[425003383,1781406224000,-754.02,0.00027397,2]
[425003385,1781406224000,-2493.47,0.00027397,2]
[425003386,1781406224000,-500.0,0.00027397,2]
[425003384,1781406224000,-1952.78,0.00027397,2]
[425003381,1781406224000,-500.0,0.00027397,2]
[425003382,1781406224000,-500.0,0.00027397,2]
[425003390,1781406224000,-500.0,0.00027397,2]
[425003402,1781406224000,-616.16,0.00027397,2]
[425003393,1781406224000,-500.0,0.00027397,2]
[425003404,1781406224000,-500.0,0.00027397,2]
[425003424,1781406224000,-500.0,0.00027397,2]
[425003403,1781406224000,-500.0,0.00027397,2]
[425003422,1781406224000,-655.93,0.00027397,2]
[425003421,1781406224000,-1699.4,0.00027397,2]
[425003420,1781406224000,-1866.36,0.00027397,2]
[425003419,1781406224000,-548.38,0.00027397,2]
[425003418,1781406224000,-815.64,0.00027397,2]
[425003415,1781406224000,-500.0,0.00027397,2]
[425003417,1781406224000,-500.0,0.00027397,2]
[425003414,1781406224000,-500.0,0.00027397,2]
[425003423,1781406224000,-500.0,0.00027397,2]
[425003411,1781406224000,-500.0,0.00027397,2]
[425003416,1781406224000,-1077.28,0.00027397,2]
[425003408,1781406224000,-1061.33,0.00027397,2]
[425003409,1781406224000,-500.0,0.00027397,2]
[425003406,1781406224000,-1117.06,0.00027397,2]
[425003405,1781406224000,-500.57,0.00027397,2]
[425003410,1781406224000,-500.0,0.00027397,2]
[425003413,1781406224000,-500.0,0.00027397,2]
[425003412,1781406224000,-500.0,0.00027397,2]
[425003407,1781406224000,-500.0,0.00027397,2]
[425003440,1781406225000,-500.0,0.00027397,2]
[425003435,1781406225000,-500.0,0.00027397,2]
[425003443,1781406225000,-500.0,0.00027397,2]
[425003442,1781406225000,-500.0,0.00027397,2]
[425003439,1781406225000,-738.85,0.00027397,2]
[425003438,1781406225000,-500.0,0.00027397,2]
[425003437,1781406225000,-500.0,0.00027397,2]
[425003436,1781406225000,-500.0,0.00027397,2]
[425003432,1781406225000,-500.0,0.00027397,2]
[425003430,1781406225000,-500.0,0.00027397,2]
[425003433,1781406225000,-500.0,0.00027397,2]
[425003431,1781406225000,-500.0,0.00027397,2]
[425003428,1781406225000,-345.20018833,0.00027397,2]
[425003429,1781406225000,-500.0,0.00027397,2]
[425003427,1781406225000,-500.0,0.00027397,2]
[425003426,1781406225000,-500.0,0.00027397,2]
[425003425,1781406225000,-1557.88,0.00027397,2]
[425003441,1781406225000,-500.0,0.00027397,2]
[425003434,1781406225000,-1075.7,0.00027397,2]
[425003444,1781406225000,-500.0,0.00027397,2]
[425003460,1781406225000,-500.0,0.00027397,2]
[425003447,1781406225000,-500.0,0.00027397,2]
[425003466,1781406225000,-500.0,0.00027397,2]
[425003445,1781406225000,-2943.14,0.00027397,2]
[425003462,1781406225000,-551.21,0.00027397,2]
[425003463,1781406225000,-500.0,0.00027397,2]
[425003461,1781406225000,-812.01,0.00027397,2]
[425003464,1781406225000,-564.36,0.00027397,2]
[425003459,1781406225000,-1083.56,0.00027397,2]
[425003458,1781406225000,-500.0,0.00027397,2]
[425003457,1781406225000,-500.0,0.00027397,2]
[425003465,1781406225000,-500.0,0.00027397,2]
[425003454,1781406225000,-500.0,0.00027397,2]
[425003456,1781406225000,-151.13201483,0.00027397,2]
[425003446,1781406225000,-500.0,0.00027397,2]
[425003449,1781406225000,-500.0,0.00027397,2]
[425003451,1781406225000,-500.0,0.00027397,2]
[425003448,1781406225000,-1370.66,0.00027397,2]
[425003452,1781406225000,-578.77,0.00027397,2]
[425003453,1781406225000,-2917.25,0.00027397,2]
[425003455,1781406225000,-500.0,0.00027397,2]
[425003450,1781406225000,-629.36,0.00027397,2]
[425003481,1781406226000,-500.0,0.00027397,2]
[425003474,1781406226000,-724.22,0.00027397,2]
[425003483,1781406226000,-500.0,0.00027397,2]
[425003480,1781406226000,-500.0,0.00027397,2]
[425003478,1781406226000,-500.0,0.00027397,2]
[425003479,1781406226000,-837.38,0.00027397,2]
[425003477,1781406226000,-500.0,0.00027397,2]
[425003476,1781406226000,-500.0,0.00027397,2]
[425003469,1781406226000,-500.0,0.00027397,2]
[425003475,1781406226000,-500.0,0.00027397,2]